fUSD/lending_fUSD_20250623
["ID","MTS","AMOUNT","RATE_DAILY","PERIOD"]
[367122135,1750662800521,-692.3,0.0003315,3]
[367122136,1750662800532,-811.41,0.0003315,3]
[367122137,1750662800546,-695.49,0.0003315,3]
[367122138,1750662800556,-387.25432377,0.0003315,3]
[367122139,1750662800566,-833.21,0.0003315,3]
[367122140,1750662800575,-591.25,0.0003315,3]
[367122141,1750662800584,-977.66,0.0003315,3]
[367122142,1750662800594,-690.16,0.0003315,3]
[367122143,1750662800603,-1109.36,0.0003315,3]
[367122144,1750662800613,-526.92,0.0003315,3]
[367122145,1750662800623,-519.11,0.0003315,3]
[367122146,1750662800632,-567.79021797,0.0003315,3]
[367122147,1750662800642,-970.12,0.0003315,3]
[367122148,1750662800651,-1478.36,0.0003315,3]
[367122149,1750662800661,-1376.6,0.0003315,3]
[367122150,1750662800670,-889.62,0.0003315,3]
[367122151,1750662800680,-1155.19,0.0003315,3]
[367122152,1750662800690,-668.52,0.0003315,3]
[367122153,1750662800700,-495.01,0.0003315,3]
[367122154,1750662800710,-611.64,0.0003315,3]
[367122155,1750662800719,-698.01,0.0003315,3]
[367122156,1750662800729,-644.39,0.0003315,3]
[367122157,1750662800738,-617.7,0.0003315,3]
[367122158,1750662800748,-826.8,0.0003315,3]
[367122159,1750662800758,-626.46,0.0003315,3]
[367122160,1750662800767,-841.55,0.0003315,3]
[367122161,1750662800776,-625.27,0.0003315,3]
[367122162,1750662800785,-1584.78,0.0003315,3]
[367122163,1750662800794,-490.0,0.0003315,3]
[367122164,1750662800803,-490.0,0.0003315,3]
[367122165,1750662800814,-1089.25,0.0003315,3]
[367122166,1750662800823,-914.26,0.0003315,3]
[367122167,1750662800833,-777.39,0.0003315,3]
[367122168,1750662800842,-667.3,0.0003315,3]
[367122169,1750662800852,-1172.55,0.0003315,3]
[367122170,1750662800862,-857.69,0.0003315,3]
[367122171,1750662800871,-601.26,0.0003315,3]
[367122172,1750662800881,-654.18,0.0003315,3]
[367122173,1750662800891,-1486.14,0.0003315,3]
[367122174,1750662800900,-563.6,0.0003315,3]
[367122175,1750662800909,-2328.1,0.0003315,3]
[367122176,1750662800919,-641.56,0.0003315,3]
[367122177,1750662800929,-524.91246856,0.0003315,3]
[367122178,1750662800939,-2984.61,0.0003315,3]
[367122179,1750662800948,-834.55,0.0003315,3]
[367122180,1750662800958,-1714.75,0.0003315,3]
[367122181,1750662800968,-1666.5,0.0003315,3]
[367122182,1750662800977,-579.07,0.0003315,3]
[367122183,1750662800987,-774.87,0.0003315,3]
[367122184,1750662800996,-523.64,0.0003315,3]
[367122185,1750662801006,-1685.1,0.0003315,3]
[367122186,1750662801015,-198.016965,0.0003315,3]
[367122187,1750662801024,-685.83,0.0003315,3]
[367122188,1750662801033,-845.32,0.0003315,3]
[367122189,1750662801043,-1003.013708,0.0003315,3]
[367122190,1750662801052,-407.03,0.0003315,3]
[367122191,1750662801062,-627.61603417,0.0003315,3]
[367122192,1750662801072,-620.28,0.0003315,3]
[367122193,1750662801082,-692.18,0.0003315,3]
[367122194,1750662801091,-583.42,0.0003315,3]
[367122195,1750662801101,-1382.11,0.0003315,3]
[367122196,1750662801110,-957.53,0.0003315,3]
[367122197,1750662801120,-1520.85,0.0003315,3]
[367122198,1750662801129,-852.4,0.0003315,3]
[367122199,1750662801139,-1514.64,0.0003315,3]
[367122200,1750662801149,-1413.76,0.0003315,3]
[367122201,1750662801159,-564.98,0.0003315,3]
[367122202,1750662801168,-621.88,0.0003315,3]
[367122203,1750662801178,-643.76,0.0003315,3]
[367122204,1750662801188,-1486.85,0.0003315,3]
[367122205,1750662801198,-605.57,0.0003315,3]
[367122206,1750662801208,-765.6,0.0003315,3]
[367122207,1750662801218,-635.87,0.0003315,3]
[367122208,1750662801227,-748.29,0.0003315,3]
[367122209,1750662801237,-609.82556551,0.0003315,3]
[367122210,1750662801247,-559.87,0.0003315,3]
[367122211,1750662801363,-521.1,0.0003315,3]
[367122212,1750662801373,-702.32,0.0003315,3]
[367122213,1750662801383,-1437.96,0.0003315,3]
[367122214,1750662801393,-933.29,0.0003315,3]
[367122215,1750662801403,-623.74,0.0003315,3]
[367122216,1750662801414,-1229.23,0.0003315,3]
[367122217,1750662801425,-1240.62,0.0003315,3]
[367122218,1750662801435,-490.0,0.0003315,3]
[367122219,1750662801445,-1044.91,0.0003315,3]
[367122220,1750662801454,-636.16,0.0003315,3]
[367122221,1750662801464,-490.92,0.0003315,3]
[367122222,1750662801474,-583.46,0.0003315,3]
[367122223,1750662801484,-1648.05,0.0003315,3]
[367122224,1750662801494,-745.48,0.0003315,3]
[367122225,1750662801504,-1025.74,0.0003315,3]
[367122226,1750662801514,-507.64,0.0003315,3]
[367122227,1750662801524,-1776.13,0.0003315,3]
[367122228,1750662801536,-803.35,0.0003315,3]
[367122229,1750662801550,-1819.02,0.0003315,3]
[367122230,1750662801560,-1305.95,0.0003315,3]
[367122231,1750662801569,-1801.52,0.0003315,3]
[367122232,1750662801579,-825.12,0.0003315,3]
[367122233,1750662801588,-553.17,0.0003315,3]
[367122234,1750662801598,-1449.74,0.0003315,3]
[367122235,1750662801609,-1184.6,0.0003315,3]
[367122236,1750662801621,-2077.31,0.0003315,3]
[367122237,1750662801631,-903.1,0.0003315,3]
[367122238,1750662801641,-840.82,0.0003315,3]
[367122239,1750662801651,-1228.76,0.0003315,3]
[367122240,1750662801661,-972.48,0.0003315,3]
[367122241,1750662801671,-319.76,0.0003315,3]
[367122242,1750662801681,-698.82,0.0003315,3]
[367122243,1750662801692,-1683.09,0.0003315,3]
[367122244,1750662801702,-614.18,0.0003315,3]
[367122245,1750662801713,-1017.63,0.0003315,3]
[367122246,1750662801722,-1068.5,0.0003315,3]
[367122247,1750662801732,-899.45,0.0003315,3]
[367122248,1750662801742,-1018.31,0.0003315,3]
[367122249,1750662801751,-1034.85,0.0003315,3]
[367122250,1750662801761,-1636.32,0.0003315,3]
[367122251,1750662801771,-636.43,0.0003315,3]
[367122252,1750662801781,-514.73,0.0003315,3]
[367122253,1750662801791,-1597.54,0.0003315,3]
[367122254,1750662801801,-878.08,0.0003315,3]
[367122255,1750662801810,-933.44,0.0003315,3]
[367122256,1750662801820,-980.14,0.0003315,3]
[367122257,1750662801830,-1351.29,0.0003315,3]
[367122258,1750662801847,-490.0,0.0003315,3]
[367122259,1750662801857,-1021.72,0.0003315,3]
[367122260,1750662801867,-637.39418391,0.0003315,3]
[367122261,1750662801877,-2515.92,0.0003315,3]
[367122262,1750662801888,-973.74,0.0003315,3]
[367122263,1750662801897,-563.49,0.0003315,3]
[367122264,1750662801907,-718.42,0.0003315,3]
[367122265,1750662801917,-442.63358922,0.0003315,3]
[367122266,1750662801927,-763.59,0.0003315,3]
[367122267,1750662801939,-1171.08,0.0003315,3]
[367122268,1750662801954,-806.32,0.0003315,3]
[367122269,1750662801964,-1313.3,0.0003315,3]
[367122270,1750662801974,-1866.63,0.0003315,3]
[367122271,1750662801984,-783.39,0.0003315,3]
[367122272,1750662801995,-1408.5,0.0003315,3]
[367122273,1750662802006,-760.51,0.0003315,3]
[367122274,1750662802018,-640.07,0.0003315,3]
[367122275,1750662802027,-1113.91,0.0003315,3]
[367122276,1750662802038,-1204.57,0.0003315,3]
[367122277,1750662802048,-1615.12,0.0003315,3]
[367122278,1750662802058,-852.31,0.0003315,3]
[367122279,1750662802068,-1617.57,0.0003315,3]
[367122280,1750662802080,-1344.16,0.0003315,3]
[367122281,1750662802091,-1189.28,0.0003315,3]
[367122282,1750662802100,-924.24,0.0003315,3]
[367122283,1750662802110,-1017.87,0.0003315,3]
[367122284,1750662802119,-816.97,0.0003315,3]
[367122285,1750662802129,-1327.65,0.0003315,3]
[367122286,1750662802138,-1505.21,0.0003315,3]
[367122287,1750662802147,-1444.07,0.0003315,3]
[367122288,1750662802157,-995.43,0.0003315,3]
[367122289,1750662802166,-3010.94,0.0003315,2]
[367122290,1750662802176,-1097.45,0.0003315,3]
[367122291,1750662802185,-753.53,0.0003315,3]
[367122292,1750662802195,-1037.06,0.0003315,3]
[367122293,1750662802204,-1995.53,0.0003315,3]
[367122294,1750662802214,-546.21461152,0.0003315,3]
[367122295,1750662802224,-752.2,0.0003315,3]
[367122296,1750662802233,-660.48,0.0003315,3]
[367122297,1750662802244,-1341.44,0.0003315,3]
[367122298,1750662802253,-850.05,0.0003315,3]
[367122299,1750662802263,-581.79,0.0003315,3]
[367122300,1750662802273,-2153.23,0.0003315,3]
[367122301,1750662802282,-557.61,0.0003315,3]
[367122302,1750662802292,-507.29,0.0003315,3]
[367122303,1750662802301,-572.59,0.0003315,3]
[367122304,1750662802311,-2413.05,0.0003315,3]
[367122305,1750662802321,-1348.78,0.0003315,3]
[367122306,1750662802330,-2316.4,0.0003315,3]
[367122307,1750662802340,-566.43,0.0003315,3]
[367122308,1750662802349,-1609.27,0.0003315,3]
[367122309,1750662802359,-584.50853888,0.0003315,3]
[367122310,1750662802368,-569.99,0.0003315,3]
[367122311,1750662802379,-466.22702916,0.0003315,3]
[367122312,1750662802388,-490.0,0.0003315,3]
[367122313,1750662802398,-2663.87,0.0003315,3]
[367122314,1750662802408,-731.27,0.0003315,3]
[367122315,1750662802418,-861.6,0.0003315,3]
[367122316,1750662802428,-560.0,0.0003315,3]
[367122317,1750662802438,-921.04,0.0003315,3]
[367122318,1750662802447,-783.55,0.0003315,3]
[367122319,1750662802457,-600.11,0.0003315,3]
[367122320,1750662802467,-1052.0,0.0003315,3]
[367122321,1750662802476,-1117.5,0.0003315,3]
[367122322,1750662802485,-785.27,0.0003315,3]
[367122323,1750662802495,-595.61,0.0003315,3]
[367122324,1750662802505,-950.58,0.0003315,3]
[367122325,1750662802515,-1688.41,0.0003315,3]
[367122326,1750662802525,-1953.41,0.0003315,3]
[367122327,1750662802539,-1726.17,0.0003315,3]
[367122328,1750662802548,-1456.32,0.0003315,3]
[367122329,1750662802558,-1698.32,0.0003315,3]
[367122330,1750662802567,-603.07,0.0003315,3]
[367122331,1750662802579,-1007.06,0.0003315,3]
[367122332,1750662802588,-1681.01,0.0003315,3]
[367122333,1750662802598,-1708.4,0.0003315,3]
[367122334,1750662802608,-873.29,0.0003315,3]
[367122335,1750662802617,-1098.59,0.0003315,3]
[367122336,1750662802627,-1944.53,0.0003315,3]
[367122337,1750662802636,-2433.81,0.0003315,3]
[367122338,1750662802646,-577.0,0.0003315,3]
[367122339,1750662802655,-750.42,0.0003315,3]
[367122340,1750662802665,-662.45,0.0003315,3]
[367122341,1750662802674,-501.38,0.0003315,3]
[367122342,1750662802683,-1247.14,0.0003315,3]
[367122343,1750662802693,-1551.77,0.0003315,3]
[367122344,1750662802703,-1650.44,0.0003315,3]
[367122345,1750662802713,-529.91,0.0003315,3]
[367122346,1750662802722,-490.0,0.0003315,3]
[367122347,1750662802732,-788.62,0.0003315,3]
[367122348,1750662802742,-912.47,0.0003315,3]
[367122349,1750662802751,-1251.29,0.0003315,3]
[367122350,1750662802761,-655.66,0.0003315,3]
[367122351,1750662802771,-703.59,0.0003315,3]
[367122352,1750662802780,-675.57,0.0003315,3]
[367122353,1750662802790,-1664.2,0.0003315,3]
[367122354,1750662802800,-1679.9,0.0003315,3]
[367122355,1750662802810,-1433.27,0.0003315,3]
[367122356,1750662802819,-1066.4,0.0003315,3]
[367122357,1750662802829,-490.0,0.0003315,3]
[367122358,1750662802839,-572.95,0.0003315,3]
[367122359,1750662802848,-1605.51,0.0003315,3]
[367122360,1750662802858,-1690.95,0.0003315,3]
[367122361,1750662802867,-490.0,0.0003315,3]
[367122362,1750662802876,-1674.28,0.0003315,3]
[367122363,1750662802885,-638.77,0.0003315,3]
[367122364,1750662802894,-1574.11,0.0003315,3]
[367122365,1750662802904,-378.81,0.0003315,3]
[367122366,1750662802913,-684.38,0.0003315,3]
[367122367,1750662802923,-1278.36,0.0003315,3]
[367122368,1750662802932,-905.6,0.0003315,3]
[367122369,1750662802942,-1682.39,0.0003315,3]
[367122370,1750662802951,-1126.22,0.0003315,3]
[367122371,1750662802961,-1883.69,0.0003315,3]
[367122372,1750662802970,-7415.21,0.0003315,3]
[367122373,1750662802980,-1410.38,0.0003315,3]
[367122374,1750662802989,-2332.56,0.0003315,3]
[367122375,1750662802999,-1449.04,0.0003315,3]
[367122376,1750662803008,-849.69,0.0003315,3]
[367122377,1750662803017,-883.32,0.0003315,3]
[367122378,1750662803026,-1248.93,0.0003315,3]
[367122379,1750662803036,-587.88,0.0003315,3]
[367122380,1750662803045,-901.3,0.0003315,3]
[367122381,1750662803055,-1164.04,0.0003315,3]
[367122382,1750662803064,-1753.14,0.0003315,3]
[367122383,1750662803074,-10399.38,0.0003315,3]
[367122384,1750662803083,-4073.96,0.0003315,3]
[367122385,1750662803092,-580.67,0.0003315,3]
[367122386,1750662803102,-1448.46,0.0003315,3]
[367122387,1750662803111,-836.73,0.0003315,3]
[367122388,1750662803120,-918.93,0.0003315,3]
[367122389,1750662803130,-1355.08,0.0003315,3]
[367122390,1750662803140,-1900.51,0.0003315,3]
[367122391,1750662803150,-526.35,0.0003315,3]
[367122392,1750662803160,-6824.52,0.0003315,3]
[367122393,1750662803170,-1016.76,0.0003315,3]
[367122394,1750662803180,-3401.6,0.0003315,3]
[367122395,1750662803190,-3966.47,0.0003315,3]
[367122396,1750662803200,-490.0,0.0003315,3]
[367122397,1750662803210,-909.73,0.0003315,3]
[367122398,1750662803220,-934.07,0.0003315,3]
[367122399,1750662803230,-4949.36,0.0003315,3]
[367122400,1750662803239,-2915.88,0.0003315,3]
[367122401,1750662803249,-1741.72,0.0003315,3]
[367122402,1750662803258,-1585.93,0.0003315,3]
[367122403,1750662803268,-500.05871784,0.0003315,3]
[367122404,1750662803278,-608.52,0.0003315,3]
[367122405,1750662803288,-18062.45,0.0003315,3]
[367122406,1750662803299,-1570.58,0.0003315,3]
[367122407,1750662803308,-3468.99,0.0003315,3]
[367122408,1750662803318,-1672.97,0.0003315,3]
[367122409,1750662803328,-789.6,0.0003315,3]
[367122410,1750662803338,-798.22,0.0003315,3]
[367122411,1750662803348,-1533.06,0.0003315,3]
[367122412,1750662803357,-1681.4,0.0003315,3]
[367122413,1750662803367,-814.19,0.0003315,3]
[367122414,1750662803376,-528.64,0.0003315,3]
[367122415,1750662803386,-1980.76,0.0003315,3]
[367122416,1750662803395,-1108.02,0.0003315,3]
[367122417,1750662803405,-2594.4,0.0003315,3]
[367122418,1750662803415,-1623.55,0.0003315,3]
[367122419,1750662803424,-614.01653387,0.0003315,3]
[367122420,1750662803433,-891.21,0.0003315,3]
[367122421,1750662803442,-1019.18,0.0003315,3]
[367122422,1750662803452,-1174.99,0.0003315,3]
[367122423,1750662803461,-3127.29,0.0003315,3]
[367122424,1750662803470,-1569.21,0.0003315,3]
[367122425,1750662803480,-1940.59,0.0003315,3]
[367122426,1750662803489,-664.92,0.0003315,3]
[367122427,1750662803498,-2329.34,0.0003315,3]
[367122428,1750662803508,-1830.85,0.0003315,3]
[367122429,1750662803517,-1700.21,0.0003315,3]
[367122430,1750662803526,-2769.81,0.0003315,3]
[367122431,1750662803538,-6713.02,0.0003315,3]
[367122432,1750662803547,-777.56,0.0003315,3]
[367122433,1750662803557,-744.42,0.0003315,3]
[367122434,1750662803566,-2394.73,0.0003315,3]
[367122435,1750662803575,-826.09,0.0003315,3]
[367122436,1750662803584,-1294.78,0.0003315,3]
[367122437,1750662803593,-490.0,0.0003315,3]
[367122438,1750662803603,-760.04,0.0003315,3]
[367122439,1750662803612,-1749.09,0.0003315,3]
[367122440,1750662803622,-490.0,0.0003315,3]
[367122441,1750662803631,-555.71,0.0003315,3]
[367122442,1750662803641,-1626.24,0.0003315,3]
[367122443,1750662803650,-4056.64,0.0003315,3]
[367122444,1750662803660,-1498.64,0.0003315,3]
[367122445,1750662803669,-1457.21,0.0003315,3]
[367122446,1750662803678,-490.0,0.0003315,3]
[367122447,1750662803688,-737.54,0.0003315,3]
[367122448,1750662803698,-1307.83,0.0003315,3]
[367122449,1750662803707,-728.06,0.0003315,3]
[367122450,1750662803716,-1832.35,0.0003315,3]
[367122451,1750662803725,-1380.67,0.0003315,3]
[367122452,1750662803735,-2228.14,0.0003315,3]
[367122453,1750662803744,-2372.02,0.0003315,3]
[367122454,1750662803753,-3318.96,0.0003315,3]
[367122455,1750662803762,-709.01,0.0003315,3]
[367122456,1750662803771,-862.45,0.0003315,3]
[367122457,1750662803780,-788.8,0.0003315,3]
[367122458,1750662803790,-1200.13,0.0003315,3]
[367122459,1750662803800,-1916.86,0.0003315,3]
[367122460,1750662803810,-678.77,0.0003315,3]
[367122461,1750662803820,-4654.08,0.0003315,3]
[367122462,1750662803829,-1366.52,0.0003315,3]
[367122463,1750662803839,-515.04,0.0003315,3]
[367122464,1750662803849,-788.62,0.0003315,3]
[367122465,1750662803858,-553.78,0.0003315,3]
[367122466,1750662803868,-1107.26,0.0003315,3]
[367122467,1750662803877,-498.97,0.0003315,3]
[367122468,1750662803886,-7394.17,0.0003315,3]
[367122469,1750662803896,-1624.99,0.0003315,3]
[367122470,1750662803905,-1578.33,0.0003315,3]
[367122471,1750662803915,-2834.49,0.0003315,3]
[367122472,1750662803925,-1036.64,0.0003315,3]
[367122473,1750662803934,-12536.04,0.0003315,3]
[367122474,1750662803943,-3543.99,0.0003315,3]
[367122475,1750662803953,-1768.62,0.0003315,3]
[367122476,1750662803962,-497.45,0.0003315,3]
[367122477,1750662803971,-510.41,0.0003315,3]
[367122478,1750662803981,-1619.96,0.0003315,3]
[367122479,1750662803990,-5190.35,0.0003315,3]
[367122480,1750662803999,-9852.89,0.0003315,3]
[367122481,1750662804009,-490.0,0.0003315,3]
[367122482,1750662804019,-1552.44,0.0003315,3]
[367122483,1750662804028,-814.87,0.0003315,3]
[367122484,1750662804037,-2783.14,0.0003315,3]
[367122485,1750662804047,-510.26,0.0003315,3]
[367122486,1750662804056,-1717.08,0.0003315,3]
[367122487,1750662804066,-1947.91,0.0003315,3]
[367122488,1750662804076,-1630.26,0.0003315,3]
[367122489,1750662804085,-2330.84,0.0003315,3]
[367122490,1750662804095,-752.02,0.0003315,3]
[367122491,1750662804105,-1618.67,0.0003315,3]
[367122492,1750662804115,-1776.65,0.0003315,3]
[367122493,1750662804126,-915.84,0.0003315,3]
[367122494,1750662804135,-1151.97,0.0003315,3]
[367122495,1750662804145,-670.37,0.0003315,3]
[367122496,1750662804154,-3986.65,0.0003315,3]
[367122497,1750662804164,-1591.01,0.0003315,3]
[367122498,1750662804174,-6065.53,0.0003315,3]
[367122499,1750662804184,-1605.38,0.0003315,3]
[367122500,1750662804194,-1960.82,0.0003315,3]
[367122501,1750662804204,-1642.63,0.0003315,3]
[367122502,1750662804213,-798.12,0.0003315,3]
[367122503,1750662804223,-1292.66,0.0003315,3]
[367122504,1750662804232,-2292.5,0.0003315,3]
[367122505,1750662804241,-2903.63,0.0003315,3]
[367122506,1750662804251,-1562.1,0.0003315,3]
[367122507,1750662804260,-4219.23,0.0003315,3]
[367122508,1750662804269,-765.43,0.0003315,3]
[367122509,1750662804279,-1872.32,0.0003315,3]
[367122510,1750662804288,-3240.53,0.0003315,3]
[367122511,1750662804298,-492.32,0.0003315,3]
[367122512,1750662804307,-1499.13,0.0003315,3]
[367122513,1750662804316,-1684.89,0.0003315,3]
[367122514,1750662804326,-1822.31,0.0003315,3]
[367122515,1750662804335,-2262.37,0.0003315,3]
[367122516,1750662804345,-745.32,0.0003315,3]
[367122517,1750662804355,-1565.33,0.0003315,3]
[367122518,1750662804365,-1599.78,0.0003315,3]
[367122519,1750662804375,-3248.59,0.0003315,3]
[367122520,1750662804385,-795.18,0.0003315,3]
[367122521,1750662804395,-638.67,0.0003315,3]
[367122522,1750662804405,-8785.1,0.0003315,3]
[367122523,1750662804416,-849.6,0.0003315,3]
[367122524,1750662804425,-1787.94,0.0003315,3]
[367122525,1750662804435,-1444.68,0.0003315,3]
[367122526,1750662804445,-1335.88,0.0003315,3]
[367122527,1750662804455,-948.02,0.0003315,3]
[367122528,1750662804465,-490.0,0.0003315,3]
[367122529,1750662804475,-1583.66,0.0003315,3]
[367122530,1750662804485,-507.9,0.0003315,3]
[367122531,1750662804496,-3963.91,0.0003315,3]
[367122532,1750662804505,-1578.99,0.0003315,3]
[367122533,1750662804515,-1445.82,0.0003315,3]
[367122534,1750662804524,-1285.59,0.0003315,3]
[367122535,1750662804536,-728.45,0.0003315,3]
[367122536,1750662804547,-806.96,0.0003315,3]
[367122537,1750662804556,-1797.81,0.0003315,3]
[367122538,1750662804567,-1432.05,0.0003315,3]
[367122539,1750662804576,-1831.64,0.0003315,3]
[367122540,1750662804587,-919.07,0.0003315,3]
[367122541,1750662804603,-14900.62,0.0003315,3]
[367122542,1750662804620,-1833.67,0.0003315,3]
[367122543,1750662804629,-2078.39,0.0003315,3]
[367122544,1750662804639,-510.45,0.0003315,3]
[367122545,1750662804648,-4833.93,0.0003315,3]
[367122546,1750662804657,-1601.31,0.0003315,3]
[367122547,1750662804667,-759.06,0.0003315,3]
[367122548,1750662804676,-873.41,0.0003315,3]
[367122549,1750662804686,-4669.42,0.0003315,3]
[367122550,1750662804696,-791.68,0.0003315,3]
[367122551,1750662804706,-1693.53,0.0003315,3]
[367122552,1750662804715,-990.18,0.0003315,3]
[367122553,1750662804730,-1034.99,0.0003315,3]
[367122554,1750662804739,-1620.6,0.0003315,3]
[367122555,1750662804749,-1653.45,0.0003315,3]
[367122556,1750662804759,-1389.7,0.0003315,3]
[367122557,1750662804770,-3451.15,0.0003315,3]
[367122558,1750662804780,-2416.24,0.0003315,3]
[367122559,1750662804789,-993.54,0.0003315,3]
[367122560,1750662804799,-11090.94,0.0003315,3]
[367122561,1750662804809,-1799.28,0.0003315,3]
[367122562,1750662804818,-1701.67,0.0003315,3]
[367122563,1750662804828,-2070.18,0.0003315,3]
[367122564,1750662804837,-1221.42,0.0003315,3]
[367122565,1750662804847,-1378.47,0.0003315,3]
[367122566,1750662804857,-1736.17,0.0003315,3]
[367122567,1750662804866,-1087.15,0.0003315,3]
[367122568,1750662804875,-1834.95,0.0003315,3]
[367122569,1750662804885,-709.09,0.0003315,3]
[367122570,1750662804894,-1672.0,0.0003315,3]
[367122571,1750662804904,-1571.12,0.0003315,3]
[367122572,1750662804913,-1351.61,0.0003315,3]
[367122573,1750662804922,-4884.01,0.0003315,3]
[367122574,1750662804931,-1816.97,0.0003315,3]
[367122575,1750662804942,-1729.07,0.0003315,3]
[367122576,1750662804951,-8073.75,0.0003315,3]
[367122577,1750662804961,-1652.26,0.0003315,3]
[367122578,1750662804970,-867.32,0.0003315,3]
[367122579,1750662804981,-1482.76,0.0003315,3]
[367122580,1750662804990,-30050.84,0.0003315,3]
[367122581,1750662805000,-1869.9,0.0003315,3]
[367122582,1750662805010,-1513.2,0.0003315,3]
[367122583,1750662805023,-825.47,0.0003315,3]
[367122584,1750662805033,-1291.21,0.0003315,3]
[367122585,1750662805043,-529.57,0.0003315,3]
[367122586,1750662805054,-718.8,0.0003315,3]
[367122587,1750662805063,-1013.98,0.0003315,2]
[367122588,1750662805073,-749.71,0.0003315,3]
[367122589,1750662805082,-2626.45,0.0003315,3]
[367122590,1750662805091,-1301.95,0.0003315,3]
[367122591,1750662805100,-1000.93,0.0003315,3]
[367122592,1750662805110,-914.97,0.0003315,3]
[367122593,1750662805119,-5331.91,0.0003315,3]
[367122594,1750662805128,-6188.74,0.0003315,3]
[367122595,1750662805137,-2204.74,0.0003315,3]
[367122596,1750662805146,-733.17,0.0003315,3]
[367122597,1750662805155,-742.07,0.0003315,3]
[367122598,1750662805165,-1553.91,0.0003315,3]
[367122599,1750662805174,-1201.89,0.0003315,3]
[367122600,1750662805184,-716.87,0.0003315,3]
[367122601,1750662805196,-866.05,0.0003315,3]
[367122602,1750662805205,-5637.09,0.0003315,3]
[367122603,1750662805215,-1651.87,0.0003315,3]
[367122604,1750662805225,-2465.19,0.0003315,3]
[367122605,1750662805234,-984.57,0.0003315,3]
[367122606,1750662805244,-1607.85,0.0003315,3]
[367122607,1750662805254,-572.05,0.0003315,3]
[367122608,1750662805263,-1536.26,0.0003315,3]
[367122609,1750662805273,-1906.99,0.0003315,3]
[367122610,1750662805282,-764.72,0.0003315,3]
[367122611,1750662805291,-2965.58,0.0003315,3]
[367122612,1750662805301,-594.04,0.0003315,3]
[367122613,1750662805311,-187.78006525,0.00033195,2]
[367122614,1750662805321,-831.51979763,0.00033195,2]
[367122615,1750662805330,-257.91778498,0.00033195,2]
[367122616,1750662805340,-201.36758019,0.00033198,2]
[367122617,1750662805350,-3374.857619,0.000332,15]
[367122618,1750662805360,-2000.0,0.000332,15]
[367122619,1750662805370,-2246.400232,0.0003321,15]
[367122620,1750662805380,-3382.66517358,0.00033224,2]
[367122621,1750662805390,-151.3,0.00033224,5]
[367122622,1750662805399,-1258.03765544,0.00033279,28]
[367122623,1750662805408,-1224.0,0.00033295,2]
[367122624,1750662805418,-207.0,0.0003336,30]
[367122625,1750662805427,-150.19,0.0003339,2]
[367122626,1750662805437,-2154.43,0.000334,14]
[367122627,1750662805446,-1000.0,0.00033404,2]
[367122628,1750662805456,-150.5,0.00033414,120]
[367122629,1750662805465,-5455.753665,0.00033424,3]
[367122630,1750662805475,-151.476984,0.00033424,3]
[367122631,1750662805485,-906.91,0.00033424,3]
[367122632,1750662805495,-765.27,0.00033424,3]
[367122633,1750662805505,-252.921479,0.00033424,3]
[367122634,1750662805514,-958.78,0.00033424,3]